[Event "Kupreichik Memorial Rapid 2019"]
[Site "Minsk"]
[Date "2019.08.17"]
[Round "9.22"]
[White "Kalinin, Dmitry"]
[Black "Masjuk, Vladimir"]
[Result "1-0"]
[ECO "A41"]
[WhiteElo "2119"]
[BlackElo "1900"]
[Annotator "NA"]
[PlyCount "115"]
[EventDate "2019.08.15"]
[EventType "swiss"]
[EventCountry "BLR"]
[SourceTitle "playchess.com"]
[Source "ChessBase"]
[SourceQuality "1"]
[TimeControl "900+10"]

1. d4 {[%emt 0:00:00]} d6 {[%emt 0:00:00]} 2. e4 {[%emt 0:00:01]} Nc6 {[%emt 0:00:00]} 3. Bc4 {[%emt 0:00:11]} e5 {[%emt 0:00:01]} 4. Nf3 {[%emt 0:00:11]} Bg4 {[%emt 0:00:15]} 5. d5 {[%emt 0:01:32]} Nd4 {[%emt 0:02:11]} 6. c3 {[%emt 0:00:07]} Nxf3+ {[%emt 0:00:03]} 7. gxf3 {[%emt 0:00:02]} Bd7 {[%emt 0:00:02]} 8. Be3 {[%emt 0:00:42]} Be7 {[%emt 0:00:53]} 9. Qd2 {[%emt 0:00:02]} Nf6 {[%emt 0:00:14]} 10. Rg1 {[%emt 0:00:03]} Nh5 {[%emt 0:00:13]} 11. f4 {[%emt 0:00:54]} exf4 {[%emt 0:01:07]} 12. Bxf4 {[%emt 0:00:07]} Nxf4 {[%emt 0:00:10]} 13. Qxf4 {[%emt 0:00:03]} Bf6 {[%emt 0:00:15]} 14. Nd2 {[%emt 0:00:14]} b5 {[%emt 0:00:19]} 15. Bd3 {[%emt 0:02:48]} b4 {[%emt 0:00:07]} 16. cxb4 {[%emt 0:00:04]} Bxb2 {[%emt 0:00:03]} 17. Rb1 {[%emt 0:00:01]} Be5 {[%emt 0:00:18]} 18. Qe3 {[%emt 0:00:56]} Qf6 {[%emt 0:01:51]} 19. Nf3 {[%emt 0:00:29]} Bf4 {[%emt 0:00:19]} 20. Qd4 {[%emt 0:00:03]} Qxd4 {[%emt 0:00:08]} 21. Nxd4 {[%emt 0:00:02]} Bxh2 {[%emt 0:00:02]} 22. Rf1 {[%emt 0:01:35]} g6 {[%emt 0:00:33]} 23. Rc1 {[%emt 0:01:11]} Rc8 {[%emt 0:01:55]} 24. Nc6 {[%emt 0:01:40]} Bxc6 {[%emt 0:00:29]} 25. Rxc6 {[%emt 0:00:01]} Kd8 {[%emt 0:00:12]} 26. Ra6 {[%emt 0:00:01]} Ra8 {[%emt 0:00:08]} 27. Bb5 {[%emt 0:00:03]} Be5 {[%emt 0:00:07]} 28. Kd2 {[%emt 0:00:55]} Bd4 {[%emt 0:00:02]} 29. Kd3 {[%emt 0:00:06]} Bb6 {[%emt 0:00:02]} 30. a4 {[%emt 0:00:00]} c5 {[%emt 0:00:23]} 31. dxc6 {[%emt 0:00:06]} Bc7 {[%emt 0:00:25]} 32. Bc4 {[%emt 0:00:42]} Ke7 {[%emt 0:00:11]} 33. a5 {[%emt 0:00:59]} h5 {[%emt 0:00:19]} 34. b5 {[%emt 0:00:06]} Rhb8 {[%emt 0:00:17]} 35. Rb1 {[%emt 0:00:03]} h4 {[%emt 0:00:52]} 36. b6 {[%emt 0:00:01]} axb6 {[%emt 0:00:16]} 37. Rxa8 {[%emt 0:00:01]} Rxa8 {[%emt 0:00:04]} 38. axb6 {[%emt 0:00:02]} Ra3+ {[%emt 0:00:36]} 39. Kd4 {[%emt 0:00:47]} Bb8 {[%emt 0:00:51]} 40. c7 {[%emt 0:02:01]} Bxc7 {[%emt 0:00:07]} 41. bxc7 {[%emt 0:00:02]} Kd7 {[%emt 0:00:07]} 42. Bxf7 {[%emt 0:00:01]} Kxc7 {[%emt 0:00:31]} 43. Bxg6 {[%emt 0:00:50]} Rf3 {[%emt 0:00:05]} 44. Rh1 {[%emt 0:00:32]} Rxf2 {[%emt 0:00:57]} 45. Rxh4 {[%emt 0:00:05]} Rd2+ {[%emt 0:00:08]} 46. Kc4 {[%emt 0:00:14]} Rc2+ {[%emt 0:00:11]} 47. Kd5 {[%emt 0:00:31]} Rc5+ {[%emt 0:00:06]} 48. Kd4 {[%emt 0:00:00]} Rc1 {[%emt 0:00:01]} 49. Rh7+ {[%emt 0:00:15]} Kb6 {[%emt 0:00:30]} 50. Kd5 {[%emt 0:00:08]} Rd1+ {[%emt 0:00:01]} 51. Ke6 {[%emt 0:00:01]} Kc6 {[%emt 0:00:12]} 52. Rh5 {[%emt 0:00:15]} Rg1 {[%emt 0:00:19]} 53. Be8+ {[%emt 0:00:02]} Kc7 {[%emt 0:00:01]} 54. Rh7+ {[%emt 0:00:01]} Kd8 {[%emt 0:00:05]} 55. Bh5 {[%emt 0:00:11]} Rg5 {[%emt 0:00:30]} 56. Kxd6 {[%emt 0:00:15]} Kc8 {[%emt 0:00:04]} 57. e5 {[%emt 0:00:02]} Rg2 {[%emt 0:00:30]} 58. Rh8+ {[%emt 0:00:07]} 1-0

[Event "Kupreichik Memorial Rapid 2019"]
[Site "Minsk"]
[Date "2019.08.17"]
[Round "9.23"]
[White "Zvereva, Margarita"]
[Black "Zhukovskij, Viktor"]
[Result "1-0"]
[ECO "D04"]
[WhiteElo "1678"]
[BlackElo "2028"]
[Annotator "NA"]
[PlyCount "87"]
[EventDate "2019.08.15"]
[EventType "swiss"]
[EventCountry "BLR"]
[SourceTitle "playchess.com"]
[Source "ChessBase"]
[SourceQuality "1"]
[TimeControl "900+10"]

1. d4 {[%emt 0:00:00]} d5 {[%emt 0:00:00]} 2. Nf3 {[%emt 0:00:00]} Nf6 {[%emt 0:00:00]} 3. e3 {[%emt 0:00:00]} c6 {[%emt 0:00:04]} 4. Bd3 {[%emt 0:00:08]} Bg4 {[%emt 0:00:39]} 5. O-O {[%emt 0:00:03]} Nbd7 {[%emt 0:00:01]} 6. Be2 {[%emt 0:00:06]} e6 {[%emt 0:00:11]} 7. b3 {[%emt 0:00:04]} Bd6 {[%emt 0:00:06]} 8. Bb2 {[%emt 0:00:04]} O-O {[%emt 0:00:08]} 9. Nbd2 {[%emt 0:00:00]} Qe7 {[%emt 0:00:37]} 10. Ne5 {[%emt 0:00:42]} Bf5 {[%emt 0:00:20]} 11. c4 {[%emt 0:00:44]} h6 {[%emt 0:00:06]} 12. f4 {[%emt 0:00:54]} Ne4 {[%emt 0:00:15]} 13. Nxe4 {[%emt 0:00:31]} Bxe4 {[%emt 0:00:02]} 14. Bd3 {[%emt 0:01:19]} Nf6 {[%emt 0:00:05]} 15. c5 {[%emt 0:00:40]} Bc7 {[%emt 0:00:14]} 16. b4 {[%emt 0:00:16]} a6 {[%emt 0:01:27]} 17. a4 {[%emt 0:00:31]} Bxd3 {[%emt 0:02:48]} 18. Qxd3 {[%emt 0:00:08]} Ne4 {[%emt 0:00:07]} 19. b5 {[%emt 0:02:09]} Bxe5 {[%emt 0:00:08]} 20. fxe5 {[%emt 0:00:08]} axb5 {[%emt 0:00:31]} 21. axb5 {[%emt 0:00:02]} cxb5 {[%emt 0:00:29]} 22. Qxb5 {[%emt 0:00:14]} Qg5 {[%emt 0:00:05]} 23. Qd3 {[%emt 0:00:22]} h5 {[%emt 0:02:07]} 24. Bc3 {[%emt 0:02:39]} h4 {[%emt 0:00:44]} 25. h3 {[%emt 0:00:16]} Qg3 {[%emt 0:01:28]} 26. Bb4 {[%emt 0:01:34]} Rfc8 {[%emt 0:05:24]} 27. Qe2 {[%emt 0:00:29]} Ng5 {[%emt 0:00:43]} 28. Kh1 {[%emt 0:00:28]} g6 {[%emt 0:00:10]} 29. Ba5 {[%emt 0:02:40]} Ra6 {[%emt 0:00:28]} 30. Be1 {[%emt 0:00:38]} Rxa1 {[%emt 0:00:19]} 31. Bxg3 {[%emt 0:00:04]} Rxf1+ {[%emt 0:00:02]} 32. Qxf1 {[%emt 0:00:02]} hxg3 {[%emt 0:00:00]} 33. Qb1 {[%emt 0:00:19]} Ra8 {[%emt 0:00:07]} 34. Kg1 {[%emt 0:00:12]} Ne4 {[%emt 0:00:01]} 35. Qb2 {[%emt 0:00:22]} Ra4 {[%emt 0:00:38]} 36. Kf1 {[%emt 0:00:13]} Rc4 {[%emt 0:00:13]} 37. Ke2 {[%emt 0:00:57]} Rc3 {[%emt 0:00:03]} 38. Kf3 {[%emt 0:00:53]} Rd3 {[%emt 0:00:15]} 39. Qxb7 {[%emt 0:00:18]} Rd2 {[%emt 0:00:08]} 40. c6 {[%emt 0:00:11]} Rf2+ {[%emt 0:00:08]} 41. Kg4 {[%emt 0:00:02]} Rxg2 {[%emt 0:00:13]} 42. c7 {[%emt 0:00:07]} Rc2 43. c8=Q+ {[%emt 0:00:06]} Rxc8 {[%emt 0:00:15]} 44. Qxc8+ 1-0

[Event "Kupreichik Memorial Rapid 2019"]
[Site "Minsk"]
[Date "2019.08.17"]
[Round "9.24"]
[White "Novik, Nikita"]
[Black "Svjatocho, Andrej"]
[Result "0-1"]
[ECO "A40"]
[WhiteElo "1355"]
[BlackElo "1995"]
[Annotator "NA"]
[PlyCount "72"]
[EventDate "2019.08.15"]
[EventType "swiss"]
[EventCountry "BLR"]
[SourceTitle "playchess.com"]
[Source "ChessBase"]
[SourceQuality "1"]
[TimeControl "900+10"]

1. d4 {[%emt 0:00:00]} e6 {[%emt 0:00:00]} 2. c4 {[%emt 0:00:00]} c5 {[%emt 0:00:00]} 3. d5 {[%emt 0:00:01]} exd5 {[%emt 0:00:00]} 4. cxd5 {[%emt 0:00:02]} d6 {[%emt 0:00:01]} 5. e4 {[%emt 0:00:02]} g6 {[%emt 0:00:17]} 6. Nc3 {[%emt 0:00:08]} a6 {[%emt 0:00:04]} 7. a4 {[%emt 0:00:15]} Bg7 {[%emt 0:00:07]} 8. Bd3 {[%emt 0:00:08]} Ne7 {[%emt 0:00:18]} 9. Nge2 {[%emt 0:00:05]} O-O {[%emt 0:00:11]} 10. O-O {[%emt 0:00:02]} Nd7 {[%emt 0:00:24]} 11. f3 {[%emt 0:00:08]} Ne5 {[%emt 0:00:49]} 12. Bf4 {[%emt 0:01:48]} f6 {[%emt 0:00:43]} 13. b3 {[%emt 0:00:58]} g5 {[%emt 0:00:46]} 14. Bxe5 {[%emt 0:00:21]} fxe5 {[%emt 0:00:03]} 15. Qd2 {[%emt 0:00:44]} Ng6 {[%emt 0:00:25]} 16. Nd1 {[%emt 0:01:50]} g4 {[%emt 0:00:18]} 17. Qe3 {[%emt 0:07:32]} Qh4 {[%emt 0:01:33]} 18. g3 {[%emt 0:02:32]} Qh5 {[%emt 0:00:04]} 19. Kg2 {[%emt 0:01:20]} gxf3+ {[%emt 0:00:52]} 20. Rxf3 {[%emt 0:00:03]} Rxf3 {[%emt 0:00:08]} 21. Qxf3 {[%emt 0:00:03]} Bh3+ {[%emt 0:00:04]} 22. Kf2 {[%emt 0:00:08]} Rf8 {[%emt 0:00:02]} 23. Nf4 Qxf3+ {[%emt 0:00:09]} 24. Kxf3 {[%emt 0:00:32]} exf4 {[%emt 0:00:03]} 25. Rc1 {[%emt 0:00:06]} Ne5+ {[%emt 0:00:08]} 26. Ke2 {[%emt 0:00:06]} f3+ {[%emt 0:00:12]} 27. Kd2 {[%emt 0:00:01]} f2 {[%emt 0:00:19]} 28. Ne3 {[%emt 0:00:02]} Nxd3 {[%emt 0:00:09]} 29. Kxd3 {[%emt 0:00:02]} f1=Q+ {[%emt 0:00:07]} 30. Nxf1 {[%emt 0:00:07]} Rxf1 {[%emt 0:00:15]} 31. Rc2 {[%emt 0:00:11]} Bd4 {[%emt 0:00:12]} 32. Rc4 {[%emt 0:00:26]} Rf3+ {[%emt 0:00:36]} 33. Kd2 {[%emt 0:00:09]} Rxb3 {[%emt 0:00:18]} 34. Rc2 {[%emt 0:00:18]} Be3+ {[%emt 0:00:08]} 35. Ke2 {[%emt 0:00:11]} Bg4+ {[%emt 0:00:04]} 36. Kf1 {[%emt 0:00:17]} Bf3 {[%emt 0:00:03]} 0-1

[Event "Kupreichik Memorial Rapid 2019"]
[Site "Minsk"]
[Date "2019.08.17"]
[Round "9.25"]
[White "Strizhnev, Ivan"]
[Black "Oblamski, Vladimir"]
[Result "0-1"]
[ECO "B01"]
[WhiteElo "1394"]
[BlackElo "2088"]
[Annotator "NA"]
[PlyCount "53"]
[EventDate "2019.08.15"]
[EventType "swiss"]
[EventCountry "BLR"]
[SourceTitle "playchess.com"]
[Source "ChessBase"]
[SourceQuality "1"]
[TimeControl "900+10"]

1. e4 {[%emt 0:00:00]} d5 {[%emt 0:00:00]} 2. exd5 {[%emt 0:00:00]} Qxd5 {[%emt 0:00:00]} 3. Nf3 {[%emt 0:00:00]} Bg4 {[%emt 0:00:00]} 4. Be2 {[%emt 0:00:01]} Nc6 {[%emt 0:00:00]} 5. O-O {[%emt 0:00:03]} O-O-O {[%emt 0:00:00]} 6. Nc3 {[%emt 0:00:06]} Qd7 {[%emt 0:00:05]} 7. d3 {[%emt 0:00:07]} e5 {[%emt 0:00:08]} 8. Be3 {[%emt 0:00:27]} Nf6 {[%emt 0:00:35]} 9. a3 {[%emt 0:00:38]} Kb8 {[%emt 0:01:55]} 10. b4 {[%emt 0:00:19]} Bxf3 {[%emt 0:00:23]} 11. Bxf3 {[%emt 0:00:13]} Nd4 {[%emt 0:00:03]} 12. Bxd4 {[%emt 0:00:19]} exd4 {[%emt 0:00:37]} 13. Ne2 {[%emt 0:00:20]} g5 {[%emt 0:00:18]} 14. g3 {[%emt 0:00:20]} h5 {[%emt 0:00:03]} 15. b5 {[%emt 0:01:02]} h4 {[%emt 0:00:53]} 16. Bg2 {[%emt 0:00:35]} Bc5 {[%emt 0:00:28]} 17. Nc1 {[%emt 0:01:11]} g4 {[%emt 0:01:42]} 18. Nb3 {[%emt 0:00:42]} Qd6 {[%emt 0:02:22]} 19. a4 {[%emt 0:01:17]} Bb4 {[%emt 0:00:16]} 20. a5 {[%emt 0:00:55]} Rdg8 {[%emt 0:00:38]} 21. b6 {[%emt 0:00:18]} cxb6 {[%emt 0:00:24]} 22. axb6 {[%emt 0:00:04]} axb6 {[%emt 0:00:28]} 23. Nd2 {[%emt 0:05:26]} Nd5 {[%emt 0:01:52]} 24. Nc4 {[%emt 0:01:04]} Qc5 {[%emt 0:00:52]} 25. Qe2 {[%emt 0:01:45]} Nc3 {[%emt 0:01:09]} 26. Qd2 {[%emt 0:01:42]} Qc7 {[%emt 0:01:50]} 27. Rfb1 0-1

[Event "Kupreichik Memorial Rapid 2019"]
[Site "Minsk"]
[Date "2019.08.17"]
[Round "9.26"]
[White "Kiryliuk, Ilya"]
[Black "Stsepkina, Yauheniya"]
[Result "1-0"]
[ECO "B21"]
[WhiteElo "1948"]
[BlackElo "1537"]
[Annotator "NA"]
[PlyCount "49"]
[EventDate "2019.08.15"]
[EventType "swiss"]
[EventCountry "BLR"]
[SourceTitle "playchess.com"]
[Source "ChessBase"]
[SourceQuality "1"]
[TimeControl "900+10"]

1. e4 {[%emt 0:00:00]} c5 {[%emt 0:00:00]} 2. d4 {[%emt 0:00:00]} cxd4 {[%emt 0:00:00]} 3. c3 {[%emt 0:00:00]} dxc3 {[%emt 0:00:00]} 4. Nxc3 {[%emt 0:00:00]} Nc6 {[%emt 0:00:00]} 5. Nf3 {[%emt 0:00:00]} d6 {[%emt 0:00:03]} 6. Bc4 {[%emt 0:00:01]} e6 {[%emt 0:00:11]} 7. O-O {[%emt 0:00:03]} Nf6 {[%emt 0:00:01]} 8. Qe2 {[%emt 0:00:01]} e5 {[%emt 0:00:21]} 9. Ng5 {[%emt 0:00:14]} Be6 {[%emt 0:07:42]} 10. Bxe6 {[%emt 0:00:05]} fxe6 {[%emt 0:00:04]} 11. Nxe6 {[%emt 0:00:02]} Qe7 {[%emt 0:00:07]} 12. Nd5 {[%emt 0:00:06]} Nxd5 {[%emt 0:02:19]} 13. exd5 {[%emt 0:00:04]} Nd4 {[%emt 0:01:10]} 14. Nxd4 {[%emt 0:00:05]} exd4 {[%emt 0:00:02]} 15. Qd1 {[%emt 0:00:07]} Qf6 {[%emt 0:00:49]} 16. Re1+ {[%emt 0:01:21]} Be7 {[%emt 0:02:36]} 17. Re6 {[%emt 0:00:31]} Qf7 {[%emt 0:01:55]} 18. Qa4+ {[%emt 0:01:09]} Kd8 {[%emt 0:00:25]} 19. Qxd4 {[%emt 0:00:20]} Re8 {[%emt 0:00:09]} 20. Bf4 {[%emt 0:00:50]} Kd7 {[%emt 0:00:10]} 21. Qa4+ {[%emt 0:00:14]} Kd8 {[%emt 0:00:03]} 22. Rae1 {[%emt 0:00:41]} Rc8 {[%emt 0:00:19]} 23. Bxd6 {[%emt 0:00:12]} Bxd6 {[%emt 0:00:09]} 24. Rxe8+ {[%emt 0:00:32]} Kc7 {[%emt 0:00:06]} 25. Rc1+ {[%emt 0:00:15]} 1-0

[Event "Kupreichik Memorial Rapid 2019"]
[Site "Minsk"]
[Date "2019.08.17"]
[Round "9.27"]
[White "Shaban, Alena"]
[Black "Shaban, Aliaksandra"]
[Result "0-1"]
[ECO "A06"]
[WhiteElo "2030"]
[BlackElo "1734"]
[Annotator "NA"]
[PlyCount "89"]
[EventDate "2019.08.15"]
[EventType "swiss"]
[EventCountry "BLR"]
[SourceTitle "playchess.com"]
[Source "ChessBase"]
[SourceQuality "1"]
[TimeControl "900+10"]

1. Nf3 {[%emt 0:00:00]} d5 {[%emt 0:00:00]} 2. g3 {[%emt 0:00:00]} c6 {[%emt 0:00:00]} 3. Bg2 {[%emt 0:00:00]} Nf6 {[%emt 0:00:00]} 4. O-O {[%emt 0:00:00]} h6 {[%emt 0:00:00]} 5. d3 {[%emt 0:00:01]} Bf5 {[%emt 0:00:03]} 6. Nbd2 {[%emt 0:00:10]} e6 {[%emt 0:00:10]} 7. c3 {[%emt 0:00:08]} Be7 {[%emt 0:00:05]} 8. Qc2 {[%emt 0:00:02]} O-O {[%emt 0:00:16]} 9. e4 {[%emt 0:00:03]} dxe4 {[%emt 0:00:10]} 10. dxe4 {[%emt 0:00:02]} Bh7 {[%emt 0:00:04]} 11. Qb3 {[%emt 0:00:11]} Qc7 {[%emt 0:01:12]} 12. e5 {[%emt 0:00:06]} Nd5 {[%emt 0:00:07]} 13. c4 {[%emt 0:01:01]} Nb4 {[%emt 0:00:10]} 14. a3 {[%emt 0:00:50]} Nd3 {[%emt 0:00:43]} 15. Rd1 {[%emt 0:01:15]} Nd7 {[%emt 0:00:28]} 16. Nf1 {[%emt 0:00:17]} N7c5 {[%emt 0:01:14]} 17. Qc3 {[%emt 0:00:35]} Rad8 {[%emt 0:00:43]} 18. Be3 {[%emt 0:00:20]} Na4 {[%emt 0:01:29]} 19. Qb3 {[%emt 0:00:40]} Naxb2 {[%emt 0:00:45]} 20. Rd2 {[%emt 0:00:14]} b6 {[%emt 0:00:49]} 21. Rxb2 {[%emt 0:00:03]} Nxb2 {[%emt 0:00:01]} 22. Qxb2 {[%emt 0:00:01]} c5 {[%emt 0:00:06]} 23. h4 {[%emt 0:00:50]} Rb8 {[%emt 0:01:16]} 24. N1d2 {[%emt 0:00:52]} a6 {[%emt 0:00:36]} 25. Re1 {[%emt 0:00:13]} b5 {[%emt 0:00:16]} 26. Qa2 {[%emt 0:00:35]} Rfc8 {[%emt 0:00:30]} 27. Bf4 {[%emt 0:00:15]} Qa7 {[%emt 0:00:15]} 28. Qb3 {[%emt 0:00:52]} b4 {[%emt 0:00:33]} 29. a4 {[%emt 0:00:04]} Rd8 {[%emt 0:00:17]} 30. Ne4 {[%emt 0:00:02]} Rb7 {[%emt 0:00:29]} 31. Nd6 {[%emt 0:00:17]} Rbd7 {[%emt 0:00:07]} 32. g4 {[%emt 0:01:16]} Qb6 {[%emt 0:01:06]} 33. g5 {[%emt 0:00:42]} hxg5 {[%emt 0:00:11]} 34. Nxg5 {[%emt 0:00:09]} Bxg5 {[%emt 0:00:36]} 35. Bxg5 {[%emt 0:00:05]} Rxd6 {[%emt 0:00:24]} 36. exd6 {[%emt 0:00:05]} Rxd6 {[%emt 0:00:02]} 37. Be4 {[%emt 0:00:28]} Bxe4 {[%emt 0:00:18]} 38. Rxe4 {[%emt 0:00:01]} Qc6 {[%emt 0:00:01]} 39. Rg4 {[%emt 0:00:07]} e5 {[%emt 0:01:02]} 40. Rg2 {[%emt 0:00:06]} Qe4 {[%emt 0:00:38]} 41. Be7 {[%emt 0:00:42]} Rd3 {[%emt 0:00:27]} 42. Qc2 {[%emt 0:00:55]} b3 {[%emt 0:01:30]} 43. Qb1 Rd1+ 44. Qxd1 b2 45. Qd8+ 0-1

[Event "Kupreichik Memorial Rapid 2019"]
[Site "Minsk"]
[Date "2019.08.17"]
[Round "9.28"]
[White "Tyurin, Artem"]
[Black "Arlou, Valery"]
[Result "0-1"]
[ECO "A42"]
[WhiteElo "2057"]
[BlackElo "1759"]
[Annotator "NA"]
[PlyCount "146"]
[EventDate "2019.08.15"]
[EventType "swiss"]
[EventCountry "BLR"]
[SourceTitle "playchess.com"]
[Source "ChessBase"]
[SourceQuality "1"]
[TimeControl "900+10"]

1. c4 {[%emt 0:00:38]} g6 {[%emt 0:00:00]} 2. Nc3 {[%emt 0:00:02]} Bg7 {[%emt 0:00:00]} 3. d4 {[%emt 0:00:03]} d6 {[%emt 0:00:00]} 4. e4 {[%emt 0:00:03]} e5 {[%emt 0:00:05]} 5. Be3 {[%emt 0:00:43]} Nc6 {[%emt 0:00:15]} 6. d5 {[%emt 0:00:04]} Nce7 {[%emt 0:00:10]} 7. Be2 {[%emt 0:00:16]} f5 {[%emt 0:01:29]} 8. f3 {[%emt 0:00:22]} Nf6 {[%emt 0:00:19]} 9. Qd2 {[%emt 0:00:13]} f4 {[%emt 0:00:09]} 10. Bf2 {[%emt 0:00:07]} Bd7 {[%emt 0:02:34]} 11. Bd3 {[%emt 0:00:08]} a6 {[%emt 0:00:48]} 12. Nge2 {[%emt 0:00:10]} g5 {[%emt 0:00:20]} 13. Nc1 {[%emt 0:01:28]} Ng6 {[%emt 0:00:07]} 14. Be2 {[%emt 0:00:04]} O-O {[%emt 0:01:43]} 15. Nd3 {[%emt 0:00:03]} h5 {[%emt 0:02:26]} 16. h3 {[%emt 0:00:38]} Kf7 {[%emt 0:00:38]} 17. c5 {[%emt 0:00:16]} Rh8 {[%emt 0:00:14]} 18. O-O-O {[%emt 0:00:17]} Qe7 {[%emt 0:00:19]} 19. Kb1 {[%emt 0:00:17]} g4 {[%emt 0:01:04]} 20. Rc1 {[%emt 0:01:34]} g3 {[%emt 0:00:52]} 21. Bg1 {[%emt 0:00:28]} Nh4 {[%emt 0:00:02]} 22. Bf1 {[%emt 0:00:14]} Bh6 {[%emt 0:00:36]} 23. c6 {[%emt 0:00:44]} bxc6 {[%emt 0:00:43]} 24. dxc6 {[%emt 0:00:02]} Be6 {[%emt 0:00:05]} 25. Nb4 {[%emt 0:00:12]} a5 {[%emt 0:00:26]} 26. Nbd5 {[%emt 0:00:05]} Nxd5 {[%emt 0:00:35]} 27. Nxd5 {[%emt 0:00:04]} Bxd5 {[%emt 0:00:15]} 28. Qxd5+ {[%emt 0:00:06]} Qe6 {[%emt 0:00:03]} 29. Qd2 {[%emt 0:00:07]} Kg7 {[%emt 0:00:21]} 30. Bc4 {[%emt 0:00:03]} Qe8 {[%emt 0:00:07]} 31. Bd5 {[%emt 0:00:08]} Ng6 {[%emt 0:00:22]} 32. Qc3 {[%emt 0:01:06]} Ne7 {[%emt 0:00:06]} 33. Be6 {[%emt 0:00:33]} Bg5 {[%emt 0:00:21]} 34. Qc4 {[%emt 0:02:35]} Qg6 {[%emt 0:00:21]} 35. Rd1 {[%emt 0:00:48]} Rhd8 {[%emt 0:00:58]} 36. h4 {[%emt 0:01:07]} Bf6 {[%emt 0:00:02]} 37. Ka1 {[%emt 0:01:44]} Qe8 {[%emt 0:00:22]} 38. Bd5 {[%emt 0:00:18]} Rdb8 {[%emt 0:00:04]} 39. Rc1 {[%emt 0:00:55]} Rb4 {[%emt 0:00:07]} 40. Qd3 {[%emt 0:00:22]} Qb8 {[%emt 0:00:34]} 41. Rc2 {[%emt 0:00:19]} Qb5 {[%emt 0:00:36]} 42. Bc4 {[%emt 0:00:20]} Qb8 {[%emt 0:00:05]} 43. a3 {[%emt 0:00:19]} Ra4 {[%emt 0:00:19]} 44. Bb3 {[%emt 0:00:22]} Rd4 {[%emt 0:00:40]} 45. Bxd4 {[%emt 0:00:03]} exd4 {[%emt 0:00:02]} 46. Qc4 {[%emt 0:00:55]} Qf8 {[%emt 0:00:09]} 47. Rd1 {[%emt 0:00:15]} Rb8 {[%emt 0:00:07]} 48. Qe6 {[%emt 0:00:32]} Ng6 {[%emt 0:00:48]} 49. Bd5 {[%emt 0:00:44]} Qe7 {[%emt 0:00:08]} 50. Qf5 {[%emt 0:00:09]} Qe5 {[%emt 0:00:06]} 51. Qxe5 {[%emt 0:00:05]} dxe5 {[%emt 0:00:04]} 52. Rc5 {[%emt 0:00:04]} Ra8 {[%emt 0:00:02]} 53. Rb5 {[%emt 0:00:04]} Be7 {[%emt 0:00:05]} 54. Rd3 {[%emt 0:00:08]} Bxh4 {[%emt 0:00:04]} 55. Rb7 {[%emt 0:00:06]} Bd8 {[%emt 0:00:02]} 56. Be6 {[%emt 0:00:16]} Kf6 {[%emt 0:00:04]} 57. Bd7 {[%emt 0:00:13]} Ke7 {[%emt 0:00:03]} 58. Rdb3 {[%emt 0:00:04]} Kd6 {[%emt 0:00:04]} 59. Bh3 {[%emt 0:00:30]} Kxc6 {[%emt 0:00:06]} 60. R7b5 {[%emt 0:00:03]} Be7 {[%emt 0:00:23]} 61. Be6 {[%emt 0:00:13]} a4 {[%emt 0:00:04]} 62. Bd5+ {[%emt 0:00:04]} Kd7 {[%emt 0:00:01]} 63. Bxa8 {[%emt 0:00:09]} axb3 {[%emt 0:00:02]} 64. Rd5+ {[%emt 0:00:06]} Bd6 {[%emt 0:00:05]} 65. Bb7 {[%emt 0:00:17]} Nh4 {[%emt 0:00:03]} 66. Ba6 {[%emt 0:00:09]} Nxg2 {[%emt 0:00:04]} 67. Rb5 {[%emt 0:00:08]} Ne3 {[%emt 0:00:04]} 68. Rb8 {[%emt 0:00:09]} h4 {[%emt 0:00:20]} 69. Rg8 {[%emt 0:00:04]} h3 {[%emt 0:00:05]} 70. Bc8+ {[%emt 0:00:01]} Ke7 {[%emt 0:00:02]} 71. Bxh3 {[%emt 0:00:01]} d3 {[%emt 0:00:03]} 72. Rg7+ {[%emt 0:00:22]} Kf6 {[%emt 0:00:02]} 73. Bf1 {[%emt 0:00:15]} Nxf1 {[%emt 0:00:03]} 0-1

[Event "Kupreichik Memorial Rapid 2019"]
[Site "Minsk"]
[Date "2019.08.17"]
[Round "9.29"]
[White "Dvurechensky, Viacheslav"]
[Black "Tarasionak, Arseni"]
[Result "1-0"]
[ECO "B20"]
[WhiteElo "1840"]
[BlackElo "1209"]
[Annotator "NA"]
[PlyCount "91"]
[EventDate "2019.08.15"]
[EventType "swiss"]
[EventCountry "BLR"]
[SourceTitle "playchess.com"]
[Source "ChessBase"]
[SourceQuality "1"]
[TimeControl "900+10"]

1. e4 {[%emt 0:00:00]} c5 {[%emt 0:00:00]} 2. Ne2 {[%emt 0:00:01]} e6 {[%emt 0:00:00]} 3. Nbc3 {[%emt 0:00:15]} a6 {[%emt 0:00:01]} 4. g3 {[%emt 0:00:09]} d5 {[%emt 0:00:12]} 5. exd5 {[%emt 0:00:14]} exd5 {[%emt 0:00:03]} 6. d4 {[%emt 0:00:11]} Bg4 {[%emt 0:00:25]} 7. Bg2 {[%emt 0:00:23]} c4 {[%emt 0:00:59]} 8. Nxd5 {[%emt 0:00:37]} Bh3 {[%emt 0:01:43]} 9. Bxh3 {[%emt 0:01:11]} Qxd5 {[%emt 0:00:02]} 10. O-O {[%emt 0:00:22]} Nc6 {[%emt 0:00:02]} 11. Re1 {[%emt 0:00:41]} Be7 {[%emt 0:00:02]} 12. c3 {[%emt 0:00:46]} Nf6 {[%emt 0:00:34]} 13. Nf4 {[%emt 0:00:29]} Qd6 {[%emt 0:00:15]} 14. Qe2 {[%emt 0:01:48]} h5 {[%emt 0:01:20]} 15. Bg2 {[%emt 0:02:11]} h4 {[%emt 0:03:28]} 16. d5 {[%emt 0:01:48]} Na5 {[%emt 0:01:51]} 17. Qe5 {[%emt 0:00:10]} Qxe5 {[%emt 0:00:56]} 18. Rxe5 {[%emt 0:00:03]} hxg3 {[%emt 0:00:01]} 19. d6 {[%emt 0:00:21]} gxh2+ {[%emt 0:00:17]} 20. Kh1 {[%emt 0:00:25]} Ng4 {[%emt 0:01:22]} 21. Rxe7+ Kf8 22. Be3 {[%emt 0:00:20]} Rh4 {[%emt 0:00:28]} 23. Bd5 {[%emt 0:01:13]} Nxf2+ {[%emt 0:01:00]} 24. Bxf2 {[%emt 0:00:02]} Rxf4 {[%emt 0:00:00]} 25. Bg3 {[%emt 0:00:40]} Rf5 {[%emt 0:00:01]} 26. Bxb7 {[%emt 0:00:57]} Rb8 {[%emt 0:00:17]} 27. Bxa6 {[%emt 0:01:18]} Rxb2 {[%emt 0:00:10]} 28. Rae1 {[%emt 0:00:21]} g5 {[%emt 0:00:33]} 29. d7 {[%emt 0:00:20]} Nc6 {[%emt 0:00:11]} 30. Re8+ {[%emt 0:00:26]} Kg7 {[%emt 0:00:01]} 31. Bxc4 {[%emt 0:00:24]} Rd2 {[%emt 0:00:21]} 32. Bxh2 {[%emt 0:01:02]} Rff2 {[%emt 0:00:30]} 33. Bg3 {[%emt 0:00:25]} Rf3 {[%emt 0:00:10]} 34. R8e3 {[%emt 0:00:12]} Rf5 {[%emt 0:00:29]} 35. Rd3 {[%emt 0:00:16]} Rxd3 {[%emt 0:00:13]} 36. Bxd3 {[%emt 0:00:02]} Rf3 {[%emt 0:00:01]} 37. Be4 {[%emt 0:00:22]} Rxg3 {[%emt 0:00:03]} 38. Bxc6 {[%emt 0:00:02]} Rd3 {[%emt 0:00:08]} 39. Re8 {[%emt 0:00:09]} Rd1+ {[%emt 0:00:01]} 40. Kg2 {[%emt 0:00:02]} Rd2+ {[%emt 0:00:01]} 41. Kf1 {[%emt 0:00:05]} Rd1+ {[%emt 0:00:12]} 42. Ke2 {[%emt 0:00:02]} Rd6 {[%emt 0:00:02]} 43. d8=Q {[%emt 0:00:09]} Rxc6 {[%emt 0:00:04]} 44. Rg8+ {[%emt 0:00:24]} Kh6 {[%emt 0:00:01]} 45. Qxg5+ {[%emt 0:00:04]} Kh7 {[%emt 0:00:02]} 46. Qg7# 1-0